bitfinex-derivatives/quotes_SOLF0:USTF0_20251211
["timestamp","ask_amount","ask_price","bid_price","bid_amount"]
[1765464671608,65.38,130.23,130.14,3.35]
[1765464671906,107.4664,130.27,130.14,3.35]
[1765464672104,107.4494,130.29,130.19,3.35]
[1765464672608,114.3365,130.31,130.22,3.35]
[1765464672914,107.4219,130.32,130.24,3.35]
[1765464673099,6.9065,130.31,130.24,3.35]
[1765464673306,107.3982,130.35,130.25,3.35]
[1765464673511,107.4061,130.34,130.25,3.35]
[1765464673711,107.4146,130.33,130.27,3.35]
[1765464674011,107.47904566,130.31,130.29,0.05400674]
[1765464674304,107.47904566,130.31,130.23,3.35]
[1765464674305,107.48134566,130.31,130.23,3.35]
[1765464674501,107.4079,130.34,130.24,3.35]
[1765464674806,107.4307,130.31,130.24,3.35]
[1765464675111,107.4486,130.29,130.19,110.8705]
[1765464675308,0.0520867,130.25,130.23,0.04945666]
[1765464676203,0.0520867,130.25,130.23,3.39945666]
[1765464676998,107.4256,130.32,130.23,0.04945666]
[1765464676999,107.4547,130.28,130.23,0.04945666]
[1765464677211,107.4547,130.28,130.19,3.35]
[1765464677212,107.4384,130.3,130.21,3.35]
[1765464677412,6.9065,130.31,130.22,3.35]
[1765464677715,107.4549,130.28,130.22,3.35]
[1765464677904,107.4549,130.28,130.24,0.05903037]
[1765464677905,0.05391525,130.26,130.24,0.05903037]
[1765464680114,221.90501525,130.26,130.24,0.05903037]
[1765464680908,0.05391525,130.26,130.24,0.05903037]
[1765464681111,0.05391525,130.26,130.18,110.7589]
[1765464681112,0.05391525,130.26,129.92,18.77846004]
[1765464681311,65.3,130.28,130.06,107.6299]
[1765464681312,107.5439,130.17,130.06,107.6299]
[1765464681514,107.5555,130.16,130.05,172.9378]
[1765464681816,107.5555,130.16,130.06,114.5527]
[1765464682012,107.5555,130.16,130.05,172.9378]
[1765464682013,107.5715,130.14,130.05,65.3]
[1765464682213,107.5715,130.14,130.08,0.05700629]
[1765464682214,0.05238275,130.11,130.08,0.05700629]
[1765464682808,107.5246,130.2,130.09,107.6065]
[1765464683205,107.5298,130.19,130.1,3.23]
[1765464683407,107.5298,130.19,130.05,172.9375]
[1765464683408,107.5708,130.14,130.06,3.23]
[1765464683607,107.505,130.22,130.12,3.23]
[1765464683809,0.05167092,130.18,130.16,0.05728986]
[1765464684007,107.58857092,130.18,130.16,0.05728986]
[1765464684308,0.05167092,130.18,130.16,0.05728986]
[1765464685110,0.05167092,130.18,130.16,3.28728986]
[1765464685310,107.491,130.24,130.16,3.28728986]
[1765464685615,107.482,130.25,130.16,3.23]
[1765464685918,107.496,130.23,130.16,3.23]
[1765464686111,107.4855,130.24,130.16,3.23]
[1765464686417,0.055841,130.21,130.19,0.05643307]
[1765464687004,0.055841,130.21,130.11,172.8658]
[1765464687005,107.532,130.19,130.12,3.23]
[1765464687209,107.5046,130.22,130.13,3.23]
[1765464687418,107.5102,130.21,130.13,3.23]
[1765464687809,107.4986,130.23,130.13,110.8057]
[1765464688014,0.04851605,130.19,130.17,0.04988802]
[1765464688618,172.7623,130.25,130.17,3.27988802]
[1765464688807,107.4576,130.28,130.18,3.23]
[1765464689114,114.3517,130.29,130.21,3.23]
[1765464689713,0.05354766,130.26,130.24,0.05548441]
[1765464690519,107.4027,130.34,130.24,177.58838441]
[1765464690819,107.4049,130.34,130.25,3.23]
[1765464691120,107.4208,130.32,130.25,3.23]
[1765464691320,107.4359,130.3,130.25,3.23]
[1765464691515,114.3632,130.28,130.26,0.05814283]
[1765464691711,114.3619,130.28,130.26,0.05814283]
[1765464691913,107.4787,130.25,130.18,65.28]
[1765464692118,6.9108,130.22,130.17,3.23]
[1765464692522,6.9097,130.25,130.17,3.23]
[1765464692810,107.4536,130.28,130.19,3.23]
[1765464693015,0.0501091,130.25,130.22,0.05399478]
[1765464693523,107.5273091,130.25,130.22,0.05399478]
[1765464693714,107.4855,130.24,130.22,0.05399478]
[1765464693914,6.91,130.24,130.22,0.05399478]
[1765464694314,0.0501091,130.25,130.22,0.05399478]
[1765464694515,0.0501091,130.25,130.22,3.28399478]
[1765464694724,0.0501091,130.25,130.22,0.05399478]
[1765464695226,107.5277091,130.25,130.22,0.05399478]
[1765464695523,107.5277091,130.25,130.22,0.00399478]
[1765464695716,107.5154,130.21,130.14,3.23]
[1765464696325,107.5183,130.2,130.14,3.23]
[1765464696515,119.79568243,130.24,130.14,3.23]
[1765464696825,0.05624301,130.18,130.17,3.23]
[1765464697024,77.56918243,130.31,130.19,110.7547]
[1765464697227,107.4254,130.32,130.22,3.23]
[1765464697415,107.4069,130.34,130.25,10.1389]
[1765464697621,107.4006,130.35,130.25,10.1389]
[1765464697819,172.6511,130.36,130.27,3.23]
[1765464698020,0.05911598,130.33,130.3,0.05091934]
[1765464698528,0.05911598,130.33,130.3,3.28091934]
[1765464699830,107.3595,130.4,130.31,3.23]
[1765464700025,107.3541,130.4,130.31,3.23]
[1765464700324,6.9026,130.38,130.31,3.23]
[1765464700824,0.05286641,130.36,130.33,3.28463118]
[1765464701726,0.05286641,130.36,130.33,0.05463118]
[1765464702030,0.05286641,130.36,130.33,3.28463118]
[1765464702418,0.05286641,130.36,130.34,3.23]
[1765464703623,0.05286641,130.36,130.33,3.28463118]
[1765464704024,6.8995,130.44,130.37,3.23]
[1765464704328,107.3211,130.44,130.37,3.23]
[1765464704524,107.3454,130.41,130.33,68.47]
[1765464704831,6.9021,130.39,130.33,68.47]
[1765464705131,0.04932762,130.38,130.36,0.05186564]
[1765464705331,0.04932762,130.38,130.36,3.28186564]
[1765464705926,0.04932762,130.38,130.36,0.05186564]
[1765464706327,0.04932762,130.38,130.36,3.28186564]
[1765464707829,6.8987,130.45,130.37,3.23]
[1765464708220,6.8987,130.45,130.38,68.45]
[1765464708623,114.1972,130.47,130.39,3.43]
[1765464708822,0.05908739,130.43,130.41,3.43]
[1765464709023,172.4964,130.5,130.41,10.38927913]
[1765464709238,107.2879,130.48,130.41,3.43]
[1765464709434,107.3225,130.44,130.38,65.22]
[1765464709932,6.9005,130.42,130.38,65.22]
[1765464710121,6.95559665,130.42,130.4,0.05277832]
[1765464711040,0.05509665,130.42,130.4,0.05277832]
[1765464711422,114.29289665,130.42,130.4,0.05277832]
[1765464711630,6.95559665,130.42,130.4,0.05277832]
[1765464711822,114.29239665,130.42,130.4,0.05277832]
[1765464712031,6.902,130.39,130.33,65.2]
[1765464712428,107.3368,130.42,130.34,3.43]
[1765464712829,6.9015,130.4,130.34,3.43]
[1765464713030,0.0537607,130.38,130.36,0.04895706]
[1765464714649,0.0537607,130.38,130.36,3.47895706]
[1765464714838,0.0537607,130.38,130.36,0.04895706]
[1765464716738,0.0537607,130.38,130.36,3.47895706]
[1765464716931,107.3172,130.45,130.36,3.47895706]
[1765464717137,107.3101,130.46,130.37,3.43]
[1765464717528,107.3148,130.45,130.37,3.43]
[1765464717731,107.3292,130.43,130.37,3.43]
[1765464717937,0.05161067,130.41,130.39,0.0571736]
[1765464718539,6.95261067,130.41,130.39,0.0571736]
[1765464719638,0.05161067,130.41,130.39,0.0571736]
[1765464720239,1.59161067,130.41,130.33,65.18]
[1765464720432,107.3911,130.36,130.28,3.43]
[1765464720735,7.84649247,130.4,130.3,107.4343]
[1765464720936,115.20249247,130.4,130.31,3.43]
[1765464721146,7.84649247,130.4,130.32,3.43]
[1765464721348,0.05296214,130.37,130.35,0.05391979]
[1765464722049,7.84649247,130.43,130.35,3.48391979]
[1765464722251,7.84649247,130.46,130.38,3.43]
[1765464722450,107.2664,130.51,130.42,3.43]
[1765464722749,107.265,130.51,130.42,3.43]
[1765464722940,107.2715,130.5,130.42,3.43]
[1765464723246,0.05316291,130.47,130.45,0.05117199]
[1765464723442,6.95106291,130.47,130.45,0.05117199]
[1765464723832,7.84649247,130.46,130.45,0.05117199]
[1765464724031,7.84649247,130.46,130.33,115.25099247]
[1765464724032,107.3294,130.43,130.34,68.61]
[1765464724349,7.84649247,130.46,130.38,3.43]
[1765464724648,107.2984,130.47,130.38,3.43]
[1765464724839,7.84649247,130.46,130.38,3.43]
[1765464725044,7.84649247,130.46,130.36,107.3789]
[1765464725045,0.05424461,130.43,130.41,3.48579988]
[1765464725245,0.05424461,130.43,130.41,0.05579988]
[1765464725637,6.95424461,130.43,130.41,0.05579988]
[1765464725838,107.38584461,130.43,130.36,3.43]
[1765464726341,6.9014,130.4,130.36,3.43]
[1765464726747,0.05230022,130.39,130.37,3.48356296]
[1765464726948,107.2984,130.47,130.37,3.48356296]
[1765464727144,107.3232,130.44,130.37,3.43]
[1765464727349,107.3232,130.44,130.33,3.43]
[1765464727350,107.3495,130.41,130.33,3.43]
[1765464727544,107.3714,130.38,130.29,3.43]
[1765464727745,7.84649247,130.39,130.3,3.43]
[1765464727949,0.05854101,130.36,130.33,0.05717536]
[1765464728249,0.05854101,130.36,130.33,3.48717536]
[1765464728438,7.84649247,130.42,130.33,3.48717536]
[1765464728640,7.84649247,130.42,130.33,3.43]
[1765464728837,107.3287,130.43,130.35,3.43]
[1765464729341,0.05887788,130.4,130.38,0.05801036]
[1765464729743,6.96027788,130.4,130.38,0.05801036]
[1765464730050,0.05887788,130.4,130.38,0.05801036]
[1765464730253,7.84649247,130.49,130.4,3.43]
[1765464730552,115.10709247,130.52,130.43,3.43]
[1765464730755,7.84649247,130.55,130.46,110.7296]
[1765464730937,7.84649247,130.55,130.48,6.8969]
[1765464731141,73.02649247,130.59,130.49,3.43]
[1765464731351,0.02865064,130.53,130.51,10.3251]
[1765464731557,0.02865064,130.53,130.52,3.43]
[1765464731744,6.8907,130.61,130.52,3.43]
[1765464731940,79.91589247,130.63,130.54,6.8937]
[1765464732258,73.02649247,130.63,130.55,3.43]
[1765464732442,7.84649247,130.63,130.55,3.43]
[1765464732642,107.1649,130.63,130.55,3.43]
[1765464732872,115.04559247,130.59,130.51,3.43]
[1765464733046,115.04559247,130.59,130.5,3.43]
[1765464733243,73.00649247,130.62,130.52,110.6819]
[1765464733449,7.84649247,130.62,130.54,3.43]
[1765464733849,0.04920429,130.59,130.57,0.05111567]
[1765464734560,119.3640605,130.68,130.59,3.18]
[1765464734855,4.38856803,130.68,130.61,3.18]
[1765464735045,107.1315,130.67,130.61,3.18]
[1765464735242,4.38856803,130.68,130.61,3.18]
[1765464735649,4.38856803,130.68,130.63,3.23478392]
[1765464736044,4.38856803,130.68,130.65,110.3232]
[1765464736249,4.38856803,130.68,130.66,3.18]
[1765464736554,7.84649247,130.78,130.68,3.18]
[1765464736750,107.0502,130.77,130.72,0.05758817]
[1765464737050,107.0687,130.75,130.72,0.05758817]
[1765464737244,214.1602,130.74,130.72,0.05758817]
[1765464737649,107.0851,130.73,130.66,68.32]
[1765464737843,107.0687,130.75,130.66,3.18]
[1765464738052,113.9849,130.71,130.62,3.18]
[1765464738458,7.84649247,130.69,130.62,3.18]
[1765464738657,0.05289006,130.67,130.64,0.05075075]
[1765464738852,107.18809006,130.67,130.64,0.05075075]
[1765464739047,107.1422,130.66,130.64,0.05075075]
[1765464739247,107.18809006,130.67,130.64,0.05075075]
[1765464739447,107.1432,130.66,130.64,0.05075075]
[1765464739957,229.02069247,130.66,130.64,0.05075075]
[1765464740254,107.1606,130.64,130.57,68.27]
[1765464740458,121.87719247,130.66,130.58,3.17]
[1765464740651,107.1547,130.65,130.58,3.17]
[1765464740846,107.1668,130.63,130.58,3.17]
[1765464741159,0.05510478,130.62,130.59,0.05306652]
[1765464741552,0.05510478,130.62,130.59,3.22306652]
[1765464741754,0.05510478,130.62,130.59,0.05306652]
[1765464742143,0.05510478,130.62,130.59,3.22306652]
[1765464742348,107.1194,130.69,130.59,4.76306652]
[1765464742549,107.113,130.7,130.59,110.3665]
[1765464742850,114.01,130.68,130.6,3.17]
[1765464743050,107.1574,130.64,130.57,65.1]
[1765464743254,0.05175028,130.62,130.59,0.05115996]
[1765464743762,0.05175028,130.62,130.59,3.22115996]
[1765464743953,0.05175028,130.62,130.59,0.05115996]
[1765464744354,107.1832,130.61,130.59,0.05115996]
[1765464745056,6.8906,130.61,130.59,0.05115996]
[1765464745357,0.05175028,130.62,130.59,0.05115996]
[1765464745553,0.05175028,130.62,130.59,3.22115996]
[1765464746352,0.05175028,130.62,130.59,0.05115996]
[1765464746748,6.94175028,130.62,130.59,0.05115996]
[1765464746954,107.1827,130.61,130.59,0.05115996]
[1765464747555,107.1973,130.59,130.52,65.08]
[1765464748459,107.2074,130.58,130.52,65.08]
[1765464748763,0.05311991,130.56,130.54,0.05763144]
[1765464750552,191.79601871,130.66,130.54,4.76763144]
[1765464750851,107.1446,130.66,130.57,3.17]
[1765464751262,6.8885,130.65,130.57,10.062]
[1765464751465,0.04979033,130.62,130.6,0.05011057]
[1765464751665,107.0933,130.72,130.6,3.22011057]
[1765464751958,107.0933,130.72,130.62,3.17]
[1765464752753,107.0801,130.74,130.66,0.05222342]
[1765464752956,107.0458,130.78,130.69,0.05284861]
[1765464753162,6.8819,130.77,130.7,3.17]
[1765464753351,6.8819,130.77,130.72,0.05589102]
[1765464753764,107.0536,130.77,130.72,0.05589102]
[1765464753957,172.1163,130.79,130.72,0.05589102]
[1765464754158,126.59951871,130.8,130.72,0.05589102]
[1765464754362,126.57651871,130.83,130.75,3.22490046]
[1765464754555,107.0051,130.83,130.78,0.04961295]
[1765464754757,106.997,130.84,130.78,0.04961295]
[1765464754962,6.8793,130.82,130.78,0.04961295]
[1765464755157,172.0669,130.85,130.78,0.04961295]
[1765464755363,106.9721,130.87,130.78,0.04961295]
[1765464755564,6.8783,130.84,130.81,0.05657809]
[1765464756071,6.8789,130.83,130.81,0.05657809]
[1765464756269,113.8801,130.83,130.81,0.05657809]
[1765464756662,6.8789,130.83,130.81,0.05657809]
[1765464757259,107.0008,130.83,130.81,0.05657809]
[1765464757465,108.5208,130.83,130.81,0.05657809]
[1765464757863,107.0343,130.79,130.72,3.17]
[1765464758069,107.0428,130.78,130.72,3.17]
[1765464758568,107.0299,130.8,130.72,3.17]
[1765464758769,126.57701871,130.83,130.75,0.05496959]
[1765464759075,6.882,130.77,130.7,65.04]
[1765464759375,0.0563869,130.75,130.72,0.0515306]
[1765464759762,107.0754,130.74,130.72,0.0515306]
[1765464760175,107.0843,130.73,130.64,68.21]
[1765464760360,6.8852,130.71,130.64,68.21]
[1765464761078,0.0486117,130.69,130.66,0.05250274]
[1765464761280,0.0486117,130.69,130.66,3.22250274]
[1765464763772,0.0486117,130.69,130.66,0.05250274]
[1765464764068,107.1670117,130.69,130.66,0.05250274]
[1765464765974,0.0486117,130.69,130.66,0.05250274]
[1765464768978,6.8868,130.68,130.66,0.05250274]
[1765464769175,107.134,130.67,130.59,65.02]
[1765464769379,7.80340362,130.66,130.59,65.02]
[1765464769576,6.8882,130.65,130.59,68.43]
[1765464770284,0.05782597,130.63,130.61,0.05039986]
[1765464770472,0.05782597,130.63,130.61,3.46039986]
[1765464770674,7.80340362,130.69,130.61,3.46039986]
[1765464770982,7.80340362,130.69,130.61,3.41]
[1765464771177,6.8866,130.68,130.61,10.3]
[1765464771375,107.14,130.66,130.59,65.02]
[1765464771582,0.04987492,130.64,130.61,0.05536119]
[1765464771879,14.69250362,130.63,130.61,0.05536119]
[1765464772581,107.189,130.6,130.53,65.04]
[1765464772776,180.01150362,130.63,130.54,3.41]
[1765464773590,0.05538175,130.6,130.57,3.46342549]
[1765464773779,0.05538175,130.6,130.57,0.05342549]
[1765464775484,6.8914,130.59,130.57,0.05342549]
[1765464776782,12.25235575,130.58,130.57,0.05342549]
[1765464777291,6.8914,130.59,130.57,0.05342549]
[1765464778180,6.8914,130.59,130.52,3.41]
[1765464778181,6.8929,130.56,130.49,6.8962]
[1765464778380,6.8929,130.56,130.48,110.6924]
[1765464778381,107.2224,130.56,130.48,3.41]
[1765464778986,6.8947,130.53,130.48,3.41]
[1765464779194,0.05343967,130.52,130.49,0.05553843]
[1765464779492,6.94843967,130.52,130.49,0.05553843]
[1765464779691,0.05343967,130.52,130.49,0.05553843]
[1765464779893,107.31063967,130.52,130.44,10.309]
[1765464780192,6.8966,130.49,130.44,3.41]
[1765464780381,107.2813,130.49,130.4,68.47]
[1765464780581,65.06,130.53,130.45,3.41]
[1765464780784,65.06,130.53,130.44,107.3201]
[1765464780785,0.04820501,130.5,130.48,0.05308766]
[1765464781084,0.04820501,130.5,130.48,3.46308766]
[1765464781285,107.2104,130.58,130.49,3.41]
[1765464781489,107.2104,130.58,130.45,110.7145]
[1765464781490,107.2301,130.55,130.45,110.7145]
[1765464781795,6.8946,130.53,130.46,10.3079]
[1765464782387,0.05838056,130.51,130.48,3.46702007]
[1765464783200,6.95398056,130.51,130.48,0.05702007]
[1765464783387,107.32368056,130.51,130.48,0.05702007]
[1765464783698,119.57603631,130.51,130.48,0.05702007]
[1765464783886,6.8961,130.5,130.48,0.05702007]
[1765464784384,6.8972,130.48,130.41,68.49]
[1765464784591,12.25235575,130.51,130.42,3.41]
[1765464784782,121.0135,130.56,130.45,3.41]
[1765464784783,107.2334,130.55,130.45,3.41]
[1765464784993,107.2467,130.53,130.45,3.41]
[1765464785193,107.2547,130.52,130.45,3.41]
[1765464785498,6.950179,130.5,130.48,0.05108539]
[1765464785697,107.2829,130.49,130.39,3.41]
[1765464785884,107.2957,130.47,130.39,3.41]
[1765464786091,6.8987,130.45,130.39,10.3116]
[1765464786687,0.05261948,130.43,130.41,0.05878709]
[1765464786883,0.00261948,130.43,130.41,3.46878709]
[1765464787088,107.2722,130.5,130.41,3.46878709]
[1765464787284,107.2722,130.5,130.41,3.41]
[1765464787597,77.35235575,130.51,130.42,3.41]
[1765464787990,0.05246942,130.48,130.45,0.04864095]
[1765464788297,0.05246942,130.48,130.45,3.45864095]
[1765464788600,0.05246942,130.48,130.45,0.04864095]
[1765464788800,0.05246942,130.48,130.45,3.45864095]
[1765464789992,0.05246942,130.48,130.46,10.3079]
[1765464790298,0.05246942,130.48,130.45,0.04864095]
[1765464790601,0.05246942,130.48,130.45,3.45864095]
[1765464790798,107.1891,130.6,130.5,3.41]
[1765464790996,107.2056,130.58,130.5,3.41]
[1765464791299,107.2056,130.58,130.46,3.41]
[1765464791300,107.2235,130.56,130.46,3.41]
[1765464791603,107.2304,130.55,130.46,3.41]
[1765464791802,0.05403521,130.52,130.49,0.05441274]
[1765464792909,107.31203521,130.52,130.49,0.05441274]
[1765464793098,6.8957,130.51,130.49,0.05441274]
[1765464793704,6.8965,130.49,130.43,72.0193]
[1765464794003,107.2885,130.48,130.38,3.41]
[1765464794502,107.3044,130.46,130.38,3.41]
[1765464794704,0.05390735,130.43,130.41,0.0577432]
[1765464796392,6.95370735,130.43,130.41,0.0577432]
[1765464796796,0.05390735,130.43,130.41,0.0577432]
[1765464799501,6.95370735,130.43,130.41,0.0577432]
[1765464799904,0.05390735,130.43,130.34,3.17]
[1765464800100,6.9015,130.4,130.34,3.17]
[1765464800494,6.9005,130.42,130.36,3.17]
[1765464800694,65.12,130.47,130.37,3.17]
[1765464800894,0.05384175,130.43,130.37,3.17]
[1765464801209,0.05384175,130.43,130.41,0.04904969]
[1765464801405,6.95374175,130.43,130.41,0.04904969]
[1765464801607,107.3383,130.42,130.34,6.9042]
[1765464801800,107.3383,130.42,130.35,3.17]
[1765464802607,6.9019,130.39,130.37,0.05025402]
[1765464803414,107.3659,130.39,130.31,68.31]
[1765464804308,0.05394732,130.36,130.34,0.05100739]
[1765464804515,0.05671521,130.36,130.34,3.22100739]
[1765464804904,0.05671521,130.36,130.34,0.05100739]
[1765464805607,6.96021521,130.36,130.34,0.05100739]
[1765464805908,107.3955,130.35,130.26,3.17]
[1765464806108,184.77385575,130.37,130.27,3.17]
[1765464806312,107.3875,130.36,130.27,3.17]
[1765464806816,0.05839865,130.33,130.3,0.05349873]
[1765464807410,0.05839865,130.33,130.3,3.22349873]
[1765464808215,0.05839865,130.33,130.3,0.05349873]
[1765464808415,0.05839865,130.33,130.3,3.22349873]
[1765464809019,0.05839865,130.33,130.3,0.05349873]
[1765464809515,6.9057,130.32,130.3,0.05349873]
[1765464810219,0.05839865,130.33,130.3,0.05349873]
[1765464810413,0.05839865,130.33,130.3,3.22349873]
[1765464811220,0.05839865,130.33,130.3,10.12999873]
[1765464811420,0.05839865,130.33,130.31,3.17]
[1765464811807,119.57845575,130.44,130.35,3.17]
[1765464812316,107.3183,130.45,130.36,3.17]
[1765464812317,6.9,130.43,130.36,3.17]
[1765464812715,0.05803247,130.41,130.38,3.22513529]
[1765464812911,119.52785575,130.5,130.4,3.17]
[1765464813117,214.4746,130.55,130.45,3.17]
[1765464813409,6.8891,130.63,130.55,3.17]
[1765464813608,107.1484,130.65,130.56,3.17]
[1765464813821,119.38915575,130.67,130.57,3.17]
[1765464814020,0.05768758,130.63,130.61,0.04998557]
[1765464814212,0.05768758,130.63,130.61,3.21998557]
[1765464814409,107.1043,130.71,130.61,4.75998557]
[1765464814611,6.8852,130.71,130.61,3.17]
[1765464814818,113.9846,130.71,130.61,3.17]
[1765464815016,107.1091,130.7,130.61,3.17]
[1765464815217,6.8865,130.68,130.61,3.17]
[1765464815428,0.04905692,130.66,130.63,0.05286018]
[1765464815814,0.04905692,130.66,130.63,3.22286018]
[1765464817317,107.1092,130.7,130.63,3.22286018]
[1765464817524,107.1092,130.7,130.63,0.05286018]
[1765464817920,114.0017,130.69,130.63,0.05286018]
[1765464818115,6.8862,130.69,130.63,0.05286018]
[1765464818314,107.1027,130.71,130.63,0.05286018]
[1765464818624,107.0551,130.77,130.67,3.17]
[1765464818922,172.1737,130.79,130.68,3.17]
[1765464819118,12.25235575,130.81,130.71,3.17]
[1765464819314,107.0194,130.81,130.71,3.17]
[1765464819518,0.05368757,130.77,130.75,0.05880123]
[1765464819920,0.05368757,130.77,130.75,3.22880123]
[1765464822933,0.05368757,130.77,130.75,0.05880123]
[1765464823329,107.0607,130.76,130.67,3.17]
[1765464823517,107.0607,130.76,130.68,65.08]
[1765464823724,107.0607,130.76,130.68,68.25]
[1765464823919,113.943,130.76,130.68,68.25]
[1765464824326,113.943,130.76,130.71,0.05636903]
[1765464824526,0.05216048,130.73,130.71,0.05636903]
[1765464824726,0.05216048,130.73,130.71,3.22636903]
[1765464825028,0.05216048,130.73,130.71,0.05636903]
[1765464829526,107.0988,130.71,130.63,68.29]
[1765464830028,107.1334,130.67,130.63,65.06]
[1765464830336,107.1334,130.67,130.59,3.23]
[1765464830527,0.05001375,130.64,130.62,0.05875718]
[1765464832839,114.09541375,130.64,130.62,0.05875718]
[1765464833437,6.93901375,130.64,130.62,0.05875718]
[1765464833833,0.05001375,130.64,130.62,0.05875718]
[1765464834334,0.05001375,130.64,130.62,3.28875718]
[1765464834735,119.36385575,130.7,130.62,3.28875718]
[1765464834935,107.1115,130.7,130.62,3.23]
[1765464835535,6.8862,130.69,130.62,3.23]
[1765464835741,0.05355303,130.67,130.64,0.05252714]
[1765464836036,0.05355303,130.67,130.64,3.28252714]
[1765464838642,0.05355303,130.67,130.64,0.05252714]
[1765464840933,107.1399,130.66,130.64,0.05252714]
[1765464841335,65.04,130.66,130.57,110.4428]
[1765464841539,65.04,130.66,130.58,3.23]
[1765464841741,172.1835,130.66,130.58,3.23]
[1765464841949,107.1501,130.65,130.58,3.23]
[1765464842246,65.04,130.66,130.6,0.05314421]
[1765464842453,0.05279587,130.63,130.6,3.28314421]
[1765464842641,0.05400204,130.63,130.6,3.28148744]
[1765464844049,0.05400204,130.63,130.6,0.05148744]
[1765464844852,6.8898,130.62,130.6,0.05148744]
[1765464845478,6.8915,130.59,130.54,65.06]
[1765464845754,6.8915,130.59,130.54,68.29]
[1765464846048,6.8915,130.59,130.55,3.23]
[1765464846247,14.69783497,130.61,130.55,3.23]
[1765464846450,0.053546,130.59,130.57,0.05346901]
[1765464847151,7.80733497,130.58,130.5,3.23]
[1765464847351,6.8925,130.57,130.51,3.23]
[1765464848146,0.05828111,130.55,130.53,3.28855662]
[1765464850346,6.95178111,130.55,130.53,0.05855662]
[1765464850548,0.05828111,130.55,130.53,3.28855662]
[1765464851443,107.1377,130.67,130.56,3.23]
[1765464851748,107.1409,130.66,130.56,3.23]
[1765464851951,7.80733497,130.64,130.56,3.23]
[1765464852150,107.1409,130.66,130.58,3.23]
[1765464852445,0.05787479,130.63,130.61,0.05033897]
[1765464853652,6.8913,130.59,130.55,3.33]
[1765464854452,114.99763497,130.6,130.51,3.33]
[1765464854643,0.05224495,130.58,130.55,0.05393429]
[1765464855038,6.8924,130.57,130.55,0.05393429]
[1765464855948,0.05224495,130.58,130.55,3.38393429]
[1765464856450,0.05224495,130.58,130.56,3.33]
[1765464856655,7.80733497,130.6,130.55,3.38393429]
[1765464856946,7.80733497,130.61,130.54,3.33]
[1765464857151,172.25,130.63,130.54,3.33]
[1765464857344,5.73074604,130.62,130.54,3.33]
[1765464857545,0.05344598,130.59,130.57,0.05427194]
[1765464857853,0.05344598,130.59,130.51,3.33]
[1765464858051,107.2053,130.58,130.51,3.33]
[1765464858254,6.893,130.56,130.51,3.33]
[1765464858754,0.05502959,130.55,130.52,3.28730515]
[1765464859744,0.05502959,130.55,130.52,0.05730515]
[1765464860549,0.05502959,130.55,130.52,3.28730515]
[1765464861148,0.05502959,130.55,130.52,0.05730515]
[1765464861347,107.28872959,130.55,130.48,3.23]
[1765464861546,107.2413,130.54,130.48,3.23]
[1765464861955,6.895,130.52,130.48,3.23]
[1765464862152,107.2337,130.55,130.48,3.23]
[1765464862348,0.05773961,130.53,130.5,0.04848673]
[1765464862554,6.8954,130.52,130.5,0.04848673]
[1765464863658,0.05773961,130.53,130.5,0.04848673]
[1765464863659,0.05773961,130.53,130.5,3.27848673]
[1765464864255,0.05773961,130.53,130.5,0.04848673]
[1765464864751,0.05773961,130.53,130.5,3.27848673]
[1765464865551,107.1706,130.63,130.51,3.23]
[1765464865552,107.1918,130.6,130.51,3.23]
[1765464866549,172.2832,130.61,130.51,3.23]
[1765464866550,0.05866492,130.57,130.55,3.23]
[1765464866754,107.1652,130.63,130.58,3.23]
[1765464867054,107.1759,130.62,130.55,3.23]
[1765464867457,107.1822,130.61,130.55,3.23]
[1765464867660,0.05627648,130.59,130.57,0.05160971]
[1765464868257,6.8918,130.58,130.57,0.05160971]
[1765464869059,6.8926,130.57,130.52,3.23]
[1765464869263,7.80733497,130.63,130.53,3.23]